[Event "Early-Titled-Tuesday-Blitz-March-05-2024"]
[Site "Chess.com"]
[Date "2024.03.05"]
[Round "11"]
[White "Byniolus"]
[Black "chess123456s"]
[Result "0-1"]
[WhiteElo "2794"]
[BlackElo "2598"]
[TimeControl "180+1"]
[EndTime "10:09:51 PST"]
[Termination "chess123456s won by resignation"]

1. d4 {[%clk 0:02:59.4]} 1... d5 {[%clk 0:02:57.6]} 2. Nf3 {[%clk 0:02:59.4]}
2... Nf6 {[%clk 0:02:55.6]} 3. Bf4 {[%clk 0:02:59.5]} 3... c5 {[%clk 0:02:56.2]}
4. c3 {[%clk 0:02:59.6]} 4... Nc6 {[%clk 0:02:56.7]} 5. Nbd2 {[%clk 0:03:00]}
5... e6 {[%clk 0:02:57.2]} 6. e3 {[%clk 0:03:00.1]} 6... Bd6 {[%clk 0:02:57.9]}
7. Bg3 {[%clk 0:03:00.4]} 7... O-O {[%clk 0:02:58.6]} 8. Bd3 {[%clk 0:02:59.9]}
8... b6 {[%clk 0:02:59.3]} 9. Ne5 {[%clk 0:03:00]} 9... Bb7 {[%clk 0:02:58.7]}
10. f4 {[%clk 0:03:00.2]} 10... Ne7 {[%clk 0:02:59.3]} 11. Qb1 {[%clk
0:03:00.4]} 11... g6 {[%clk 0:02:58.2]} 12. Bf2 {[%clk 0:02:59.9]} 12... c4
{[%clk 0:02:45.3]} 13. Bc2 {[%clk 0:02:55.9]} 13... b5 {[%clk 0:02:43.9]} 14. a3
{[%clk 0:02:54.4]} 14... a5 {[%clk 0:02:40.5]} 15. O-O {[%clk 0:02:47.9]} 15...
b4 {[%clk 0:02:34.8]} 16. Bh4 {[%clk 0:02:43.1]} 16... Nd7 {[%clk 0:02:10.4]}
17. Qe1 {[%clk 0:02:26.5]} 17... f6 {[%clk 0:01:48.1]} 18. Nxd7 {[%clk
0:02:14.8]} 18... Qxd7 {[%clk 0:01:48]} 19. e4 {[%clk 0:02:15.7]} 19... b3
{[%clk 0:01:34]} 20. Bd1 {[%clk 0:02:15.4]} 20... f5 {[%clk 0:01:32.2]} 21. e5
{[%clk 0:02:06.2]} 21... Bc7 {[%clk 0:01:29.1]} 22. h3 {[%clk 0:02:00.5]} 22...
Nc8 {[%clk 0:01:23.6]} 23. g4 {[%clk 0:01:52]} 23... Bd8 {[%clk 0:01:11.4]} 24.
Bf3 {[%clk 0:01:33]} 24... Nb6 {[%clk 0:01:06.7]} 25. gxf5 {[%clk 0:01:26.8]}
25... gxf5 {[%clk 0:01:02.2]} 26. Kh2 {[%clk 0:01:23.5]} 26... Kh8 {[%clk
0:00:56.7]} 27. Rg1 {[%clk 0:01:18.4]} 27... Qf7 {[%clk 0:00:42]} 28. Rg2 {[%clk
0:00:35]} 28... Na4 {[%clk 0:00:36.1]} 29. Nf1 {[%clk 0:00:22]} 29... Bxh4
{[%clk 0:00:22.7]} 30. Qxh4 {[%clk 0:00:22.9]} 30... Rg8 {[%clk 0:00:23.6]} 31.
Rb1 {[%clk 0:00:16.5]} 31... Rxg2+ {[%clk 0:00:20.6]} 32. Bxg2 {[%clk
0:00:17.4]} 32... Rg8 {[%clk 0:00:21.1]} 33. Ng3 {[%clk 0:00:15.1]} 33... Qg6
{[%clk 0:00:20.4]} 34. Bf3 {[%clk 0:00:15.4]} 34... Bc6 {[%clk 0:00:19.3]} 35.
Nh5 {[%clk 0:00:15.1]} 35... Nxb2 {[%clk 0:00:12.5]} 36. Nf6 {[%clk 0:00:05.3]}
36... Rg7 {[%clk 0:00:12.6]} 37. Nh5 {[%clk 0:00:04.5]} 37... Rg8 {[%clk
0:00:09.4]} 38. Qf6+ {[%clk 0:00:02.8]} 38... Qxf6 {[%clk 0:00:06.1]} 39. Nxf6
{[%clk 0:00:03.7]} 39... Na4 {[%clk 0:00:04.1]} 40. Nxg8 {[%clk 0:00:04.1]}
40... Kxg8 {[%clk 0:00:04.8]} 41. Rc1 {[%clk 0:00:04.6]} 41... Nxc3 {[%clk
0:00:04.2]} 42. Rg1+ {[%clk 0:00:01.8]} 42... Kf8 {[%clk 0:00:03.9]} 43. Bh5
{[%clk 0:00:02.7]} 43... b2 {[%clk 0:00:04]} 0-1

[Event "Early-Titled-Tuesday-Blitz-March-05-2024"]
[Site "Chess.com"]
[Date "2024.03.05"]
[Round "11"]
[White "GeorgiosSouleidis"]
[Black "ccccvhhhj"]
[Result "1-0"]
[WhiteElo "2659"]
[BlackElo "2471"]
[TimeControl "180+1"]
[EndTime "10:09:52 PST"]
[Termination "GeorgiosSouleidis won on time"]

1. e4 {[%clk 0:03:00.9]} 1... e6 {[%clk 0:02:59.8]} 2. d4 {[%clk 0:02:59.6]}
2... d5 {[%clk 0:03:00.7]} 3. Nc3 {[%clk 0:02:59.8]} 3... Bb4 {[%clk 0:03:00.6]}
4. Ne2 {[%clk 0:02:57.8]} 4... Nc6 {[%clk 0:03:00.8]} 5. exd5 {[%clk 0:02:50.5]}
5... exd5 {[%clk 0:03:01.7]} 6. a3 {[%clk 0:02:50.3]} 6... Ba5 {[%clk
0:02:58.8]} 7. b4 {[%clk 0:02:48.1]} 7... Bb6 {[%clk 0:02:59.2]} 8. Na4 {[%clk
0:02:46.8]} 8... Nf6 {[%clk 0:02:59.8]} 9. c3 {[%clk 0:02:45.2]} 9... O-O {[%clk
0:02:59.4]} 10. Ng3 {[%clk 0:02:42.9]} 10... Bg4 {[%clk 0:02:25.1]} 11. f3
{[%clk 0:02:42.5]} 11... Bd7 {[%clk 0:02:23.6]} 12. Bd3 {[%clk 0:02:38.8]} 12...
Re8+ {[%clk 0:02:18.9]} 13. Kf2 {[%clk 0:02:38.8]} 13... h5 {[%clk 0:01:41.8]}
14. Nc5 {[%clk 0:02:30.7]} 14... h4 {[%clk 0:01:37.6]} 15. Nf5 {[%clk
0:02:26.6]} 15... Bxc5 {[%clk 0:01:36.3]} 16. bxc5 {[%clk 0:02:26.5]} 16... Bxf5
{[%clk 0:01:14.1]} 17. Bxf5 {[%clk 0:02:26.3]} 17... Ne7 {[%clk 0:01:15]} 18.
Bd3 {[%clk 0:02:25.2]} 18... Ng6 {[%clk 0:01:01.4]} 19. Re1 {[%clk 0:02:19.7]}
19... h3 {[%clk 0:00:58.6]} 20. g3 {[%clk 0:02:17]} 20... Rxe1 {[%clk
0:00:49.1]} 21. Qxe1 {[%clk 0:02:16.6]} 21... Qd7 {[%clk 0:00:50]} 22. Bg5
{[%clk 0:02:03.5]} 22... Re8 {[%clk 0:00:49.5]} 23. Qd2 {[%clk 0:02:02.9]} 23...
b6 {[%clk 0:00:27.2]} 24. cxb6 {[%clk 0:02:01.6]} 24... axb6 {[%clk 0:00:28.1]}
25. Re1 {[%clk 0:01:23.6]} 25... Rxe1 {[%clk 0:00:25.9]} 26. Qxe1 {[%clk
0:01:24.5]} 26... Qd6 {[%clk 0:00:26.7]} 27. Bc1 {[%clk 0:01:13]} 27... c5
{[%clk 0:00:23.2]} 28. Bf5 {[%clk 0:01:10.5]} 28... cxd4 {[%clk 0:00:10.6]} 29.
cxd4 {[%clk 0:01:11.4]} 29... Qc7 {[%clk 0:00:10.6]} 30. Bxh3 {[%clk 0:01:06.6]}
30... Qc2+ {[%clk 0:00:10.6]} 31. Qd2 {[%clk 0:01:07.1]} 31... Qc4 {[%clk
0:00:08.7]} 32. Bf1 {[%clk 0:01:04.9]} 32... Qc7 {[%clk 0:00:08.6]} 33. Bd3
{[%clk 0:01:02.8]} 33... Ne7 {[%clk 0:00:08.6]} 34. Qc2 {[%clk 0:00:47.1]} 34...
Qd7 {[%clk 0:00:08.9]} 35. Kg2 {[%clk 0:00:42]} 35... Qd6 {[%clk 0:00:09.1]} 36.
a4 {[%clk 0:00:37.1]} 36... Nc6 {[%clk 0:00:08.2]} 37. Qc3 {[%clk 0:00:35.6]}
37... Ne7 {[%clk 0:00:07.7]} 38. Bf4 {[%clk 0:00:34.1]} 38... Qe6 {[%clk
0:00:07.6]} 39. Bb5 {[%clk 0:00:20.7]} 39... Ng6 {[%clk 0:00:07.2]} 40. Be3
{[%clk 0:00:16.9]} 40... Qf5 {[%clk 0:00:06.2]} 41. Qd3 {[%clk 0:00:14.9]} 41...
Qe6 {[%clk 0:00:05.9]} 42. Bf2 {[%clk 0:00:14.9]} 42... Qe7 {[%clk 0:00:06]} 43.
Qe3 {[%clk 0:00:14.2]} 43... Qd6 {[%clk 0:00:05.8]} 44. Bd3 {[%clk 0:00:14.3]}
44... Ne7 {[%clk 0:00:05.2]} 45. g4 {[%clk 0:00:11.2]} 45... Nd7 {[%clk
0:00:04.1]} 46. Bg3 {[%clk 0:00:10.9]} 46... Qf6 {[%clk 0:00:03.1]} 47. Bb5
{[%clk 0:00:10.7]} 47... Nf8 {[%clk 0:00:02.7]} 48. Qe5 {[%clk 0:00:09.9]} 1-0

[Event "Early-Titled-Tuesday-Blitz-March-05-2024"]
[Site "Chess.com"]
[Date "2024.03.05"]
[Round "11"]
[White "dosto07"]
[Black "marik_spb"]
[Result "0-1"]
[WhiteElo "2542"]
[BlackElo "2466"]
[TimeControl "180+1"]
[EndTime "10:09:52 PST"]
[Termination "marik_spb won by checkmate"]

1. e4 {[%clk 0:03:00.9]} 1... c6 {[%clk 0:02:40.2]} 2. d4 {[%clk 0:03:00.4]}
2... d5 {[%clk 0:02:41.1]} 3. Nc3 {[%clk 0:03:01.1]} 3... dxe4 {[%clk
0:02:41.3]} 4. Nxe4 {[%clk 0:03:02]} 4... Nf6 {[%clk 0:02:42.2]} 5. Nxf6+ {[%clk
0:03:02.2]} 5... exf6 {[%clk 0:02:43.1]} 6. c3 {[%clk 0:03:02.7]} 6... Bd6
{[%clk 0:02:43.7]} 7. Bd3 {[%clk 0:03:03.3]} 7... Na6 {[%clk 0:02:43.8]} 8. Ne2
{[%clk 0:03:03.4]} 8... Nc7 {[%clk 0:02:43.2]} 9. O-O {[%clk 0:03:03.4]} 9...
O-O {[%clk 0:02:43.3]} 10. Bf4 {[%clk 0:02:54.1]} 10... Bg4 {[%clk 0:02:42.2]}
11. Bxd6 {[%clk 0:02:51.2]} 11... Qxd6 {[%clk 0:02:43.1]} 12. h3 {[%clk
0:02:48.5]} 12... Bh5 {[%clk 0:02:42.7]} 13. Qd2 {[%clk 0:02:48.3]} 13... Rfe8
{[%clk 0:02:37.4]} 14. Rfe1 {[%clk 0:02:48.1]} 14... Nd5 {[%clk 0:02:34.5]} 15.
Ng3 {[%clk 0:02:38.4]} 15... Bg6 {[%clk 0:02:33]} 16. Nf5 {[%clk 0:02:37.3]}
16... Bxf5 {[%clk 0:02:30.5]} 17. Bxf5 {[%clk 0:02:37.1]} 17... g6 {[%clk
0:02:30.6]} 18. Bc2 {[%clk 0:02:34.2]} 18... Kg7 {[%clk 0:02:30]} 19. a3 {[%clk
0:02:26.8]} 19... h5 {[%clk 0:02:29.5]} 20. Re4 {[%clk 0:02:05.6]} 20... Rxe4
{[%clk 0:02:25.2]} 21. Bxe4 {[%clk 0:02:05.3]} 21... Nf4 {[%clk 0:02:17.6]} 22.
h4 {[%clk 0:01:58.9]} 22... Re8 {[%clk 0:02:12.2]} 23. Re1 {[%clk 0:01:57.5]}
23... f5 {[%clk 0:02:11.5]} 24. Bf3 {[%clk 0:01:52.9]} 24... Rxe1+ {[%clk
0:02:04.7]} 25. Qxe1 {[%clk 0:01:53.2]} 25... Ne6 {[%clk 0:01:57.6]} 26. Qd2
{[%clk 0:01:41.1]} 26... Qd8 {[%clk 0:01:46.6]} 27. g3 {[%clk 0:01:29.5]} 27...
f4 {[%clk 0:01:45.2]} 28. Kg2 {[%clk 0:01:28.1]} 28... fxg3 {[%clk 0:01:44.2]}
29. fxg3 {[%clk 0:01:28.5]} 29... Kh7 {[%clk 0:01:20.1]} 30. Qe3 {[%clk
0:01:27.6]} 30... Qb6 {[%clk 0:01:11.9]} 31. Qd2 {[%clk 0:01:19.6]} 31... Ng7
{[%clk 0:01:09.9]} 32. Be4 {[%clk 0:01:18.3]} 32... f5 {[%clk 0:00:47.7]} 33.
Bb1 {[%clk 0:01:11.5]} 33... f4 {[%clk 0:00:45.1]} 34. gxf4 {[%clk 0:01:06.5]}
34... Qd8 {[%clk 0:00:44.1]} 35. Kg3 {[%clk 0:01:02.8]} 35... Qd7 {[%clk
0:00:32]} 36. Qe2 {[%clk 0:00:58.4]} 36... Kh6 {[%clk 0:00:23.4]} 37. Be4 {[%clk
0:00:48]} 37... Qe6 {[%clk 0:00:20.9]} 38. Qf3 {[%clk 0:00:41.5]} 38... a5
{[%clk 0:00:16.5]} 39. Bd3 {[%clk 0:00:39.4]} 39... Qe1+ {[%clk 0:00:11.4]} 40.
Qf2 {[%clk 0:00:35.3]} 40... Qc1 {[%clk 0:00:11.6]} 41. Be4 {[%clk 0:00:28]}
41... a4 {[%clk 0:00:09.4]} 42. Kg2 {[%clk 0:00:22.6]} 42... Qd1 {[%clk
0:00:08.4]} 43. Kg3 {[%clk 0:00:20.1]} 43... Qc1 {[%clk 0:00:08.3]} 44. Bf3
{[%clk 0:00:19.2]} 44... Nf5+ {[%clk 0:00:07.7]} 45. Kh2 {[%clk 0:00:17.2]}
45... Qxf4+ {[%clk 0:00:08.3]} 46. Kg2 {[%clk 0:00:16.3]} 46... Nxh4+ {[%clk
0:00:08.7]} 47. Kf1 {[%clk 0:00:13.4]} 47... Qxf3 {[%clk 0:00:08.6]} 48. Ke1
{[%clk 0:00:11.8]} 48... Ng2+ {[%clk 0:00:08.4]} 49. Kf1 {[%clk 0:00:11.6]}
49... Ne3+ {[%clk 0:00:09]} 50. Ke1 {[%clk 0:00:11.9]} 50... Qd1# {[%clk
0:00:09]} 0-1

[Event "Early-Titled-Tuesday-Blitz-March-05-2024"]
[Site "Chess.com"]
[Date "2024.03.05"]
[Round "11"]
[White "GMKrikor"]
[Black "Lennis93"]
[Result "1-0"]
[WhiteElo "2869"]
[BlackElo "2704"]
[TimeControl "180+1"]
[EndTime "10:09:53 PST"]
[Termination "GMKrikor won by resignation"]

1. Nf3 {[%clk 0:03:00.9]} 1... d5 {[%clk 0:02:59.6]} 2. c4 {[%clk 0:02:58.5]}
2... d4 {[%clk 0:02:59.3]} 3. b4 {[%clk 0:02:57.5]} 3... g5 {[%clk 0:02:56.6]}
4. h3 {[%clk 0:02:57.1]} 4... Bg7 {[%clk 0:02:55.3]} 5. d3 {[%clk 0:02:57.2]}
5... h6 {[%clk 0:02:54.3]} 6. g3 {[%clk 0:02:57.9]} 6... a5 {[%clk 0:02:53.8]}
7. b5 {[%clk 0:02:57.2]} 7... Nf6 {[%clk 0:02:41.2]} 8. Ba3 {[%clk 0:02:55.6]}
8... O-O {[%clk 0:02:32.1]} 9. Bg2 {[%clk 0:02:55.5]} 9... Re8 {[%clk
0:02:31.3]} 10. h4 {[%clk 0:02:24.3]} 10... g4 {[%clk 0:02:30.2]} 11. Nfd2
{[%clk 0:02:24.6]} 11... Ra7 {[%clk 0:02:11.7]} 12. Ne4 {[%clk 0:02:13.7]} 12...
Nxe4 {[%clk 0:02:09]} 13. Bxe4 {[%clk 0:02:13.4]} 13... f5 {[%clk 0:02:05.7]}
14. Bg2 {[%clk 0:02:12.9]} 14... b6 {[%clk 0:02:05.8]} 15. c5 {[%clk 0:02:08.2]}
15... e5 {[%clk 0:02:00.7]} 16. c6 {[%clk 0:01:59.8]} 16... Be6 {[%clk
0:01:56.8]} 17. Nd2 {[%clk 0:01:55.5]} 17... a4 {[%clk 0:01:56.7]} 18. Qc2
{[%clk 0:01:52.5]} 18... Ra5 {[%clk 0:01:55.8]} 19. Rb1 {[%clk 0:01:52.4]} 19...
Bf7 {[%clk 0:01:39.6]} 20. O-O {[%clk 0:01:49.2]} 20... Qf6 {[%clk 0:01:31.6]}
21. Nc4 {[%clk 0:01:46.6]} 21... Ra7 {[%clk 0:01:31.1]} 22. e3 {[%clk 0:01:42]}
22... f4 {[%clk 0:01:29.2]} 23. Be4 {[%clk 0:01:24.7]} 23... dxe3 {[%clk
0:01:08.8]} 24. fxe3 {[%clk 0:01:24.6]} 24... f3 {[%clk 0:01:08.6]} 25. Bb4
{[%clk 0:01:11.6]} 25... a3 {[%clk 0:01:03.9]} 26. Bc3 {[%clk 0:01:08.7]} 26...
Qe7 {[%clk 0:01:00.9]} 27. Kh2 {[%clk 0:01:04.1]} 27... Bf6 {[%clk 0:00:53.2]}
28. Qf2 {[%clk 0:00:55.9]} 28... Ra4 {[%clk 0:00:44.1]} 29. Rfc1 {[%clk
0:00:42.2]} 29... Kh8 {[%clk 0:00:36.8]} 30. Ba1 {[%clk 0:00:37.2]} 30... Rg8
{[%clk 0:00:36]} 31. Kg1 {[%clk 0:00:33]} 31... Re8 {[%clk 0:00:25.2]} 32. Rb3
{[%clk 0:00:28.8]} 32... Bh5 {[%clk 0:00:25.2]} 33. Bc3 {[%clk 0:00:22.6]} 33...
Qc5 {[%clk 0:00:18.8]} 34. Kh2 {[%clk 0:00:20.1]} 34... Rxc4 {[%clk 0:00:17.2]}
35. dxc4 {[%clk 0:00:20.1]} 35... Qxc4 {[%clk 0:00:18.1]} 36. Qc2 {[%clk
0:00:12.7]} 36... Rd8 {[%clk 0:00:08.1]} 37. Ba1 {[%clk 0:00:12.1]} 37... Qe2+
{[%clk 0:00:06.8]} 38. Qxe2 {[%clk 0:00:12.2]} 38... fxe2 {[%clk 0:00:07.7]} 39.
Re1 {[%clk 0:00:12.1]} 39... Rd2 {[%clk 0:00:07.8]} 40. Bc3 {[%clk 0:00:11.9]}
40... Rxa2 {[%clk 0:00:07.3]} 41. Bb1 {[%clk 0:00:12]} 41... Rb2 {[%clk
0:00:03.2]} 42. Bxb2 {[%clk 0:00:12]} 42... axb2 {[%clk 0:00:04.1]} 43. Rxb2
{[%clk 0:00:12.1]} 43... Bf7 {[%clk 0:00:04.2]} 44. Rbxe2 {[%clk 0:00:11.5]}
44... Kg7 {[%clk 0:00:05.1]} 45. Rf2 {[%clk 0:00:11.9]} 45... e4 {[%clk
0:00:06]} 46. Ref1 {[%clk 0:00:12.2]} 46... Bc4 {[%clk 0:00:06.1]} 47. Rxf6
{[%clk 0:00:12.4]} 47... Bxb5 {[%clk 0:00:06.7]} 48. Bxe4 {[%clk 0:00:11.8]}
48... Bxf1 {[%clk 0:00:06.1]} 49. Rxf1 {[%clk 0:00:11.5]} 49... Na6 {[%clk
0:00:07]} 50. Rf4 {[%clk 0:00:11.2]} 50... Nc5 {[%clk 0:00:07.9]} 51. Bc2 {[%clk
0:00:10.3]} 51... h5 {[%clk 0:00:07.5]} 52. Rf5 {[%clk 0:00:10.1]} 1-0

[Event "Early-Titled-Tuesday-Blitz-March-05-2024"]
[Site "Chess.com"]
[Date "2024.03.05"]
[Round "11"]
[White "ChessBrainiacOnTwitch"]
[Black "rnanjo"]
[Result "0-1"]
[WhiteElo "2791"]
[BlackElo "2584"]
[TimeControl "180+1"]
[EndTime "10:09:54 PST"]
[Termination "rnanjo won by checkmate"]

1. e4 {[%clk 0:03:00.9]} 1... g6 {[%clk 0:02:54]} 2. d4 {[%clk 0:02:58.3]} 2...
d6 {[%clk 0:02:53.9]} 3. Nc3 {[%clk 0:02:58.7]} 3... c6 {[%clk 0:02:53.9]} 4. f4
{[%clk 0:02:59.4]} 4... d5 {[%clk 0:02:53.6]} 5. e5 {[%clk 0:02:58.6]} 5... h5
{[%clk 0:02:53]} 6. Nf3 {[%clk 0:02:59]} 6... Bg4 {[%clk 0:02:53.1]} 7. Bd3
{[%clk 0:02:59.6]} 7... e6 {[%clk 0:02:52.5]} 8. Be3 {[%clk 0:03:00.1]} 8... Nh6
{[%clk 0:02:50.2]} 9. Qe2 {[%clk 0:02:54.2]} 9... Nd7 {[%clk 0:02:44.3]} 10.
O-O-O {[%clk 0:02:52.5]} 10... Bb4 {[%clk 0:02:39.8]} 11. Bd2 {[%clk 0:02:49.6]}
11... Be7 {[%clk 0:02:33]} 12. h3 {[%clk 0:02:49.7]} 12... Bxf3 {[%clk
0:02:32.7]} 13. Qxf3 {[%clk 0:02:50.6]} 13... h4 {[%clk 0:02:33]} 14. g4 {[%clk
0:02:47.8]} 14... hxg3 {[%clk 0:02:32.6]} 15. Qxg3 {[%clk 0:02:47.3]} 15... Bh4
{[%clk 0:02:31.1]} 16. Qf3 {[%clk 0:02:44.7]} 16... b5 {[%clk 0:02:22.6]} 17.
Kb1 {[%clk 0:02:43]} 17... Nf5 {[%clk 0:02:18.5]} 18. Ne2 {[%clk 0:02:42.2]}
18... Nb6 {[%clk 0:02:10]} 19. Bxf5 {[%clk 0:02:41.7]} 19... gxf5 {[%clk
0:02:09.8]} 20. Rhg1 {[%clk 0:02:34.4]} 20... Be7 {[%clk 0:02:05.9]} 21. Ng3
{[%clk 0:02:32]} 21... Rxh3 {[%clk 0:01:59.9]} 22. Rh1 {[%clk 0:02:28.5]} 22...
Rxh1 {[%clk 0:01:59.9]} 23. Rxh1 {[%clk 0:02:29.4]} 23... Kd7 {[%clk 0:02:00.1]}
24. Ba5 {[%clk 0:02:26.5]} 24... Qg8 {[%clk 0:01:57.7]} 25. Ne2 {[%clk
0:02:02.5]} 25... Nc4 {[%clk 0:01:55.4]} 26. Be1 {[%clk 0:02:00.9]} 26... Qg4
{[%clk 0:01:31.7]} 27. Qxg4 {[%clk 0:01:59.4]} 27... fxg4 {[%clk 0:01:32.6]} 28.
b3 {[%clk 0:02:00.3]} 28... Ne3 {[%clk 0:01:32.5]} 29. Ng3 {[%clk 0:02:00.4]}
29... Rg8 {[%clk 0:01:22.1]} 30. Rh7 {[%clk 0:01:49.6]} 30... Ke8 {[%clk
0:01:20.6]} 31. Nh5 {[%clk 0:01:20.6]} 31... Nf5 {[%clk 0:01:17.7]} 32. Bf2
{[%clk 0:00:59.1]} 32... g3 {[%clk 0:01:17]} 33. Bg1 {[%clk 0:00:59.6]} 33... g2
{[%clk 0:01:16.6]} 34. Nf6+ {[%clk 0:00:52.8]} 34... Bxf6 {[%clk 0:01:10.6]} 35.
exf6 {[%clk 0:00:53.7]} 35... Ng3 {[%clk 0:01:08.9]} 36. Rg7 {[%clk 0:00:51.3]}
36... Kf8 {[%clk 0:01:09.2]} 37. Rh7 {[%clk 0:00:21.5]} 37... Ne2 {[%clk
0:01:08.5]} 38. Bh2 {[%clk 0:00:16.8]} 38... g1=Q+ {[%clk 0:00:45.9]} 39. Bxg1
{[%clk 0:00:15.9]} 39... Rxg1+ {[%clk 0:00:46.8]} 40. Kb2 {[%clk 0:00:16.3]}
40... Nxd4 {[%clk 0:00:43.3]} 41. Kc3 {[%clk 0:00:13]} 41... c5 {[%clk
0:00:39.9]} 42. b4 {[%clk 0:00:13.1]} 42... Rg3+ {[%clk 0:00:39.7]} 43. Kd2
{[%clk 0:00:13.4]} 43... c4 {[%clk 0:00:39]} 44. c3 {[%clk 0:00:13]} 44... Nf5
{[%clk 0:00:38]} 45. Ke2 {[%clk 0:00:13.6]} 45... Nd6 {[%clk 0:00:33.7]} 46. a3
{[%clk 0:00:07.9]} 46... Ne4 {[%clk 0:00:33.3]} 47. Rh6 {[%clk 0:00:05]} 47...
Nxc3+ {[%clk 0:00:31.2]} 48. Ke1 {[%clk 0:00:04.6]} 48... Ne4 {[%clk 0:00:31.4]}
49. Ke2 {[%clk 0:00:04.7]} 49... d4 {[%clk 0:00:31.2]} 50. Rh5 {[%clk
0:00:03.7]} 50... d3+ {[%clk 0:00:30.5]} 51. Kf1 {[%clk 0:00:03.5]} 51... c3
{[%clk 0:00:30]} 52. Rxb5 {[%clk 0:00:03.4]} 52... Nxf6 {[%clk 0:00:29.9]} 53.
Kf2 {[%clk 0:00:02]} 53... Ne4+ {[%clk 0:00:29.8]} 54. Kf1 {[%clk 0:00:02.6]}
54... c2 {[%clk 0:00:29.9]} 55. Rb8+ {[%clk 0:00:02.2]} 55... Kg7 {[%clk
0:00:29.8]} 56. Rc8 {[%clk 0:00:03.1]} 56... d2 {[%clk 0:00:29]} 57. Rf8 {[%clk
0:00:01.1]} 57... d1=Q# {[%clk 0:00:27.9]} 0-1

[Event "Early-Titled-Tuesday-Blitz-March-05-2024"]
[Site "Chess.com"]
[Date "2024.03.05"]
[Round "11"]
[White "Seochesspie"]
[Black "Bauman_Guy"]
[Result "0-1"]
[WhiteElo "2832"]
[BlackElo "2930"]
[TimeControl "180+1"]
[EndTime "10:09:55 PST"]
[Termination "Bauman_Guy won by resignation"]

1. c4 {[%clk 0:03:00.9]} 1... e6 {[%clk 0:02:26]} 2. d4 {[%clk 0:02:59.7]} 2...
Nf6 {[%clk 0:02:25.4]} 3. Nf3 {[%clk 0:02:59.4]} 3... d5 {[%clk 0:02:26]} 4. Nc3
{[%clk 0:02:58.7]} 4... c5 {[%clk 0:02:26.1]} 5. cxd5 {[%clk 0:02:58.2]} 5...
Nxd5 {[%clk 0:02:27]} 6. e4 {[%clk 0:02:57.6]} 6... Nxc3 {[%clk 0:02:26.2]} 7.
bxc3 {[%clk 0:02:58.5]} 7... cxd4 {[%clk 0:02:27.1]} 8. cxd4 {[%clk 0:02:58.9]}
8... Bb4+ {[%clk 0:02:27.8]} 9. Bd2 {[%clk 0:02:59.3]} 9... Bxd2+ {[%clk
0:02:28.5]} 10. Qxd2 {[%clk 0:03:00.2]} 10... O-O {[%clk 0:02:28.6]} 11. Bc4
{[%clk 0:02:58.2]} 11... Nd7 {[%clk 0:02:27.6]} 12. O-O {[%clk 0:02:58.3]} 12...
b6 {[%clk 0:02:25.9]} 13. Rfe1 {[%clk 0:02:55.4]} 13... Bb7 {[%clk 0:02:25.6]}
14. a4 {[%clk 0:02:52]} 14... Rc8 {[%clk 0:02:24.2]} 15. Bd3 {[%clk 0:02:51.5]}
15... a6 {[%clk 0:02:16.3]} 16. h3 {[%clk 0:02:46]} 16... h6 {[%clk 0:02:11.3]}
17. Rab1 {[%clk 0:02:44.7]} 17... Qc7 {[%clk 0:02:08.9]} 18. Rec1 {[%clk
0:02:36.5]} 18... Qb8 {[%clk 0:02:07.6]} 19. Rxc8 {[%clk 0:02:33.7]} 19... Rxc8
{[%clk 0:02:08.5]} 20. Qb4 {[%clk 0:02:32.9]} 20... Qc7 {[%clk 0:01:53.7]} 21.
Kf1 {[%clk 0:01:42.6]} 21... Qf4 {[%clk 0:01:47.5]} 22. Re1 {[%clk 0:01:37.1]}
22... Rc1 {[%clk 0:01:39.1]} 23. Rxc1 {[%clk 0:01:33.1]} 23... Qxc1+ {[%clk
0:01:38.5]} 24. Ke2 {[%clk 0:01:34]} 24... Nf6 {[%clk 0:01:24.3]} 25. Nd2 {[%clk
0:01:30.4]} 25... Qc7 {[%clk 0:01:14.5]} 26. g3 {[%clk 0:01:27.4]} 26... h5
{[%clk 0:01:12.9]} 27. h4 {[%clk 0:01:23.9]} 27... a5 {[%clk 0:01:08.8]} 28. Qb3
{[%clk 0:01:12.6]} 28... Bc6 {[%clk 0:00:59]} 29. Ke3 {[%clk 0:01:04.4]} 29...
Qd8 {[%clk 0:00:49.9]} 30. f3 {[%clk 0:01:02.7]} 30... Qc7 {[%clk 0:00:47.7]}
31. Kf2 {[%clk 0:01:01.5]} 31... Qd8 {[%clk 0:00:33.8]} 32. Ke3 {[%clk 0:01:00]}
32... Nd7 {[%clk 0:00:32.4]} 33. Nc4 {[%clk 0:00:57.2]} 33... g5 {[%clk
0:00:31.8]} 34. hxg5 {[%clk 0:00:50.9]} 34... Qxg5+ {[%clk 0:00:32.7]} 35. Kf2
{[%clk 0:00:51.3]} 35... h4 {[%clk 0:00:33.2]} 36. gxh4 {[%clk 0:00:51.5]} 36...
Qxh4+ {[%clk 0:00:33.6]} 37. Kf1 {[%clk 0:00:42.9]} 37... Qh1+ {[%clk
0:00:31.6]} 38. Kf2 {[%clk 0:00:42.9]} 38... Qa1 {[%clk 0:00:32.3]} 39. Qb2
{[%clk 0:00:32.7]} 39... Qh1 {[%clk 0:00:21.7]} 40. Qb3 {[%clk 0:00:23.9]} 40...
Qh2+ {[%clk 0:00:18.8]} 41. Ke3 {[%clk 0:00:24.1]} 41... Qg1+ {[%clk 0:00:18.5]}
42. Ke2 {[%clk 0:00:22.4]} 42... Qxd4 {[%clk 0:00:18.6]} 43. Nb2 {[%clk
0:00:17.5]} 43... Ne5 {[%clk 0:00:14.6]} 44. Qc2 {[%clk 0:00:15]} 44... Nxd3
{[%clk 0:00:12.8]} 45. Nxd3 {[%clk 0:00:14.3]} 45... Bxa4 {[%clk 0:00:12.6]} 46.
Qc8+ {[%clk 0:00:14.7]} 46... Kg7 {[%clk 0:00:13.2]} 47. Qc7 {[%clk 0:00:10.1]}
47... Bb5 {[%clk 0:00:07.1]} 48. Qg3+ {[%clk 0:00:10.7]} 48... Kf8 {[%clk
0:00:07]} 49. Qb8+ {[%clk 0:00:10.9]} 49... Ke7 {[%clk 0:00:07.3]} 50. Qc7+
{[%clk 0:00:10.3]} 50... Qd7 {[%clk 0:00:07.9]} 0-1